fUST/lending_fUST_20251113
["ID","MTS","AMOUNT","RATE_DAILY","PERIOD"]
[393844799,1763037040976,-151.0,0.00041343,120]
[393844800,1763037040986,-151.0,0.00041343,120]
[393844801,1763037040996,-151.0,0.00041343,120]
[393844802,1763037041007,-151.0,0.00041343,120]
[393844803,1763037041015,-151.0,0.00041343,120]
[393844804,1763037041026,-151.0,0.00041343,120]
[393844805,1763037041035,-151.0,0.00041343,120]
[393844806,1763037041045,-151.0,0.00041343,120]
[393844807,1763037041054,-151.0,0.00041343,120]
[393844808,1763037041064,-151.0,0.00041343,120]
[393844809,1763037041073,-188.05099,0.00041343,120]
[393844810,1763037041082,-188.05099,0.00041343,120]
[393844811,1763037041091,-188.05099,0.00041343,120]
[393844812,1763037041099,-151.0,0.00041343,120]
[393844813,1763037041108,-188.05099,0.00041343,120]
[393844814,1763037041117,-330.31515,0.00041343,120]
[393844815,1763037041126,-272.257235,0.00041343,120]
[393844816,1763037041136,-330.31515,0.00041343,120]
[393844817,1763037041144,-151.0,0.00041343,120]
[393844818,1763037041155,-330.31515,0.00041343,120]
[393844819,1763037041164,-272.257235,0.00041343,120]
[393844820,1763037041173,-272.257235,0.00041343,120]
[393844821,1763037041183,-330.31515,0.00041343,120]
[393844822,1763037041191,-151.0,0.00041343,120]
[393844823,1763037041201,-272.257235,0.00041343,120]
[393844824,1763037041211,-151.0,0.00041343,120]
[393844825,1763037041220,-151.0,0.00041343,120]
[393844826,1763037041229,-151.0,0.00041343,120]
[393844827,1763037041239,-160.771972,0.00041343,120]
[393844828,1763037041248,-566.90172512,0.00041607,3]
[393844829,1763037041258,-160.52,0.000417,14]
[393844830,1763037041267,-1067.75376007,0.0004199,2]
[393844831,1763037041276,-300.0,0.00042,120]
[393844832,1763037041286,-1000.0,0.00042,120]
[393844833,1763037041296,-300.0,0.00042,30]
[393844834,1763037041305,-2248.35093666,0.00042022,2]
[393844835,1763037041314,-207.56987041,0.00042239,31]
[393844836,1763037041322,-500.0,0.00042239,7]
[393844837,1763037041331,-165.75916355,0.00042239,31]
[393844838,1763037041340,-314.02736614,0.00042239,7]
[393844839,1763037041349,-500.0,0.00042239,7]
[393844840,1763037041359,-500.0,0.00042239,7]
[393844841,1763037041372,-500.0,0.00042239,7]
[393844842,1763037041381,-500.0,0.0004224,120]
[393844843,1763037041391,-922.94,0.0004224,120]
[393844844,1763037041401,-731.89,0.0004224,120]
[393844845,1763037041413,-397.5673823,0.00042262,30]
[393844846,1763037041423,-303.3075285,0.00042262,30]
[393844847,1763037041434,-154.024012,0.00042262,30]
[393844848,1763037041446,-1204.4672465,0.00042262,30]
[393844849,1763037041456,-566.90172512,0.00042345,3]
[393844850,1763037041465,-5925.17774825,0.00042355,3]
[393844851,1763037041496,-2011.44640343,0.00042355,3]
[393844852,1763037041506,-151.0,0.00042355,120]
[393844853,1763037041515,-151.0,0.00042355,120]
[393844854,1763037041525,-151.0,0.00042355,120]
[393844855,1763037041534,-151.0,0.00042355,120]
[393844856,1763037041544,-151.0,0.00042355,120]
[393844857,1763037041554,-151.0,0.00042355,120]
[393844858,1763037041563,-232.40346,0.00042355,120]
[393844859,1763037041573,-151.0,0.00042355,120]
[393844860,1763037041584,-232.40346,0.00042355,120]
[393844861,1763037041593,-232.40346,0.00042355,120]
[393844862,1763037041602,-232.40346,0.00042355,120]
[393844863,1763037041612,-153.82634,0.00042355,120]
[393844864,1763037041622,-151.0,0.00042355,120]
[393844865,1763037041632,-151.0,0.00042355,120]
[393844866,1763037041641,-151.0,0.00042355,120]
[393844867,1763037041651,-151.625485,0.00042355,120]
[393844868,1763037041661,-151.0,0.00042355,120]
[393844869,1763037041671,-151.0,0.00042355,120]
[393844870,1763037041682,-151.0,0.00042355,120]
[393844871,1763037041693,-151.0,0.00042355,120]
[393844872,1763037041703,-151.0,0.00042355,120]
[393844873,1763037041713,-151.0,0.00042355,120]
[393844874,1763037041722,-157.512994,0.00042355,120]
[393844875,1763037041732,-188.05099,0.00042355,120]
[393844876,1763037041740,-188.05099,0.00042355,120]
[393844877,1763037041749,-188.05099,0.00042355,120]
[393844878,1763037041758,-151.0,0.00042355,120]
[393844879,1763037041767,-188.05099,0.00042355,120]
[393844880,1763037041777,-330.31515,0.00042355,120]
[393844881,1763037041786,-330.31515,0.00042355,120]
[393844882,1763037041795,-151.0,0.00042355,120]
[393844883,1763037041805,-272.257235,0.00042355,120]
[393844884,1763037041815,-330.31515,0.00042355,120]
[393844885,1763037041824,-272.257235,0.00042355,120]
[393844886,1763037041835,-330.31515,0.00042355,120]
[393844887,1763037041844,-272.257235,0.00042355,120]
[393844888,1763037041854,-151.0,0.00042355,120]
[393844889,1763037041863,-272.257235,0.00042355,120]
[393844890,1763037041873,-151.0,0.00042355,120]
[393844891,1763037041882,-151.0,0.00042355,120]
[393844892,1763037041891,-151.0,0.00042355,120]
[393844893,1763037041901,-47228.54458382,0.00042365,2]
[393844905,1763037046243,-5000.0,0.00032877,120]
[393844906,1763037046252,-8206.06578121,0.00042365,2]
[393844907,1763037046469,-9542.330956,0.00042365,2]
[393844908,1763037046480,-1029.7,0.00042365,2]
[393844929,1763037508947,152.21,0.0002,2]
[393844930,1763037977114,576.58,0.00032877,120]
[393844964,1763038232363,-429.36067865,0.00022,2]
[393844965,1763038232377,-2000.0,0.00032877,3]
[393844966,1763038232389,-418.66929077,0.00032877,120]
[393844967,1763038232402,-3826.66574302,0.00032877,120]
[393844968,1763038232414,-422.484,0.0003509,2]
[393844969,1763038232427,-163.95623982,0.00035782,2]
[393844970,1763038232439,-68584.43264236,0.0003634,10]
[393844971,1763038232455,-45845.82732344,0.0003634,10]
[393844972,1763038232493,-60055.06429746,0.0003634,10]
[393844993,1763038238264,-1382.8095471,0.0003634,10]
[393844994,1763038238276,-15619.73589633,0.0003634,10]
[393844995,1763038238287,-3682.71679036,0.0003634,10]
[393844996,1763038238322,-6933.67109851,0.0003634,10]
[393844997,1763038238333,-70409.74614381,0.0003634,10]
[393844998,1763038238382,-315.39791262,0.0003634,10]
[393845151,1763038246571,-16343.961639,0.0003634,10]
[393845152,1763038246582,-366.64,0.0003634,10]
[393845154,1763038950752,248.617772,0.00013699,2]
[393845243,1763039156956,3253.08878412,0.0002,2]
[393845277,1763039325164,-248.617772,0.00020187,2]
[393845278,1763039325192,-150.0,0.00022696,2]
[393845279,1763039325216,-177.0,0.00024696,2]
[393845280,1763039325241,-877.69735421,0.00025205,2]
[393845281,1763039325267,-248.617772,0.00026676,2]
[393845282,1763039325289,-204.0,0.00026696,2]
[393845283,1763039325312,-406.0,0.00028,2]
[393845284,1763039356007,-285.884835,0.00028155,2]
[393845285,1763039356029,-231.0,0.00028696,2]
[393845286,1763039356051,-400.0,0.00030559,2]
[393845287,1763039356240,-500.0,0.0003056,2]
[393845288,1763039356270,-199.58385327,0.0003056,2]
[393845289,1763039356295,-480.06049171,0.0003056,2]
[393845290,1763039356317,-500.0,0.0003056,2]
[393845291,1763039356340,-500.0,0.0003056,2]
[393845292,1763039356362,-500.0,0.0003056,2]
[393845293,1763039356384,-400.0,0.0003056,2]
[393845294,1763039356417,-500.0,0.0003056,2]
[393845295,1763039356443,-500.0,0.0003056,2]
[393845296,1763039356466,-500.0,0.0003056,2]
[393845297,1763039356490,-500.0,0.0003056,2]
[393845298,1763039356515,-500.0,0.0003056,2]
[393845299,1763039356539,-500.0,0.0003056,2]
[393845300,1763039356564,-500.0,0.0003056,2]
[393845301,1763039356588,-500.0,0.0003056,2]
[393845302,1763039356612,-627.63481065,0.0003056,2]
[393845303,1763039356636,-500.0,0.0003056,2]
[393845304,1763039356660,-500.0,0.0003056,2]
[393845305,1763039356684,-332.92699899,0.0003056,2]
[393845306,1763039356708,-500.0,0.0003056,2]
[393845307,1763039356731,-500.0,0.0003056,2]
[393845308,1763039356756,-500.0,0.0003056,2]
[393845309,1763039356780,-500.0,0.0003056,2]
[393845310,1763039356803,-500.0,0.0003056,2]
[393845311,1763039356825,-500.0,0.0003056,2]
[393845312,1763039356848,-500.0,0.0003056,2]
[393845313,1763039356871,-500.0,0.0003056,2]
[393845314,1763039356893,-500.0,0.0003056,2]
[393845315,1763039356917,-500.0,0.0003056,2]
[393845316,1763039356940,-500.0,0.0003056,2]
[393845317,1763039356964,-500.0,0.0003056,2]
[393845318,1763039356988,-500.0,0.0003056,2]
[393845319,1763039357012,-500.0,0.0003056,2]
[393845320,1763039357035,-500.0,0.0003056,2]
[393845321,1763039357058,-500.0,0.0003056,2]
[393845322,1763039357080,-500.0,0.0003056,2]
[393845323,1763039357103,-500.0,0.0003056,2]
[393845324,1763039357125,-500.0,0.0003056,2]
[393845325,1763039357147,-500.0,0.0003056,2]
[393845326,1763039357170,-500.0,0.0003056,2]
[393845327,1763039357198,-500.0,0.0003056,2]
[393845328,1763039357223,-500.0,0.0003056,2]
[393845329,1763039357247,-500.0,0.0003056,2]
[393845330,1763039357272,-500.0,0.0003056,2]
[393845331,1763039357296,-500.0,0.0003056,2]
[393845332,1763039357319,-500.0,0.0003056,2]
[393845333,1763039357341,-500.0,0.0003056,2]
[393845334,1763039357363,-500.0,0.0003056,2]
[393845335,1763039357385,-500.0,0.0003056,2]
[393845336,1763039357409,-500.0,0.0003056,2]
[393845337,1763039357432,-500.0,0.0003056,2]
[393845338,1763039357456,-500.0,0.0003056,2]
[393845339,1763039357479,-500.0,0.0003056,2]
[393845340,1763039357501,-500.0,0.0003056,2]
[393845341,1763039357523,-500.0,0.0003056,2]
[393845342,1763039357546,-500.0,0.0003056,2]
[393845343,1763039357568,-650.0,0.0003056,2]
[393845344,1763039357590,-500.0,0.0003056,2]
[393845345,1763039357612,-500.0,0.0003056,2]
[393845346,1763039357634,-500.0,0.0003056,2]
[393845347,1763039357656,-500.0,0.0003056,2]
[393845348,1763039357679,-168.7121065,0.00030561,2]
[393845349,1763039357702,-168.71210617,0.00030561,2]
[393845350,1763039357723,-168.88064956,0.00030561,2]
[393845351,1763039357747,-8386.60414815,0.00030561,2]
[393845417,1763039433176,-335.69123497,0.0003056,2]
[393845418,1763039433187,-64.30876503,0.0003056,2]
[393845419,1763039433197,-455.4651291,0.0003056,2]
[393845420,1763039433226,-343.5348709,0.0003056,2]
[393845421,1763039433235,-73.63016328,0.00030561,2]
[393845422,1763039433248,-598.0,0.00030561,2]
[393845423,1763039433260,-671.02956399,0.00030561,2]
[393845424,1763039433271,-685.397014,0.00030561,2]
[393845425,1763039433284,-901.35642237,0.00030561,2]
[393845440,1763039438481,-150.0,0.0002589,2]
[393845441,1763039438490,-177.0,0.0002789,2]
[393845442,1763039438500,-204.0,0.0002989,2]
[393845443,1763039438509,-144.32248755,0.00030561,2]
[393845444,1763039438521,-29815.15370029,0.00030561,2]
[393845445,1763039438530,-446.41416494,0.00030876,2]
[393845446,1763039438539,-500.0,0.00031201,4]
[393845447,1763039438548,-500.0,0.00031202,4]
[393845448,1763039438558,-500.0,0.00031202,4]
[393845449,1763039438567,-176.874,0.00031203,28]
[393845450,1763039438576,-467.76589396,0.000313,5]
[393845451,1763039438587,-32.23410604,0.000313,5]
[393845452,1763039438597,-413.0,0.00032049,2]
[393845453,1763039438606,-500.0,0.00032525,5]
[393845454,1763039438616,-446.41416494,0.00032621,2]
[393845455,1763039438627,-291.95942341,0.00032799,2]
[393845456,1763039438636,-500.0,0.00032799,2]
[393845457,1763039438646,-500.0,0.00032799,2]
[393845458,1763039438655,-500.0,0.00032799,2]
[393845459,1763039438665,-500.0,0.00032799,2]
[393845460,1763039438674,-500.0,0.00032799,2]
[393845461,1763039438684,-498.2926999,0.00032799,2]
[393845462,1763039438693,-400.76,0.000328,3]
[393845463,1763039438702,-429.60816672,0.00032825,5]
[393845464,1763039438713,-160.0,0.000329,120]
[393845465,1763039438722,-560.0,0.00032918,2]
[393845466,1763039438731,-495.18708248,0.00033073,5]
[393845467,1763039438740,-578.85704011,0.0003308,5]
[393845468,1763039438750,-150.0,0.0003308,5]
[393845469,1763039438760,-248.617772,0.00033165,2]
[393845470,1763039438769,-150.7727955,0.00033217,5]
[393845471,1763039438779,-500.0,0.00034,5]
[393845472,1763039438788,-465.08568432,0.00034,5]
[393845473,1763039438798,-446.41416494,0.00034365,2]
[393845474,1763039438807,-1000.0,0.00034548,5]
[393845475,1763039438816,-251.98104247,0.00034976,4]
[393845476,1763039438826,-413.0,0.00035049,2]
[393845477,1763039438837,-2168.0,0.0003509,2]
[393845478,1763039438846,-629.0,0.0003509,2]
[393845479,1763039438856,-987.0,0.0003509,2]
[393845480,1763039438866,-1500.0,0.00035096,5]
[393845481,1763039438875,-783.0,0.00035458,2]
[393845482,1763039438884,-2180.10677502,0.00035496,2]
[393845483,1763039438894,-2000.0,0.00035644,5]
[393845484,1763039438903,-2775.96,0.00035781,2]
[393845485,1763039438912,-2775.96,0.00035781,2]
[393845486,1763039438921,-162.82399718,0.00035782,2]
[393845487,1763039438930,-151.0,0.00035898,31]
[393845488,1763039438939,-152.065962,0.00035898,31]
[393845489,1763039438948,-151.0,0.00035898,31]
[393845490,1763039438958,-151.0,0.00035898,31]
[393845491,1763039438968,-151.0,0.00035898,31]
[393845492,1763039438977,-151.0,0.00035898,31]
[393845493,1763039438987,-151.0,0.00035898,31]
[393845494,1763039438996,-151.0,0.00035898,31]
[393845495,1763039439005,-251.535009,0.00035898,31]
[393845496,1763039439015,-151.0,0.00035898,31]
[393845497,1763039439024,-151.0,0.00035898,31]
[393845498,1763039439033,-151.0,0.00035898,31]
[393845499,1763039439043,-151.0,0.00035898,31]
[393845500,1763039439052,-154.054395,0.00035899,28]
[393845501,1763039439062,-446.41416494,0.0003611,2]
[393845502,1763039439071,-155.879383,0.00036144,31]
[393845503,1763039439081,-157.162831,0.00036144,31]
[393845504,1763039439091,-151.0,0.00036144,31]
[393845505,1763039439101,-151.0,0.00036144,31]
[393845506,1763039439111,-151.0,0.00036144,31]
[393845507,1763039439122,-151.0,0.00036144,31]
[393845508,1763039439131,-151.0,0.00036144,31]
[393845509,1763039439140,-151.0,0.00036144,31]
[393845510,1763039439150,-151.0,0.00036144,31]
[393845511,1763039439160,-151.0,0.00036144,31]
[393845512,1763039439173,-151.0,0.00036144,31]
[393845513,1763039439183,-198.18909,0.00036144,31]
[393845514,1763039439192,-152.280643,0.00036144,31]
[393845515,1763039439206,-163.354341,0.00036144,31]
[393845516,1763039439215,-151.0,0.00036144,31]
[393845517,1763039439225,-198.18909,0.00036144,31]
[393845518,1763039439235,-163.354341,0.00036144,31]
[393845519,1763039439246,-163.354341,0.00036144,31]
[393845520,1763039439256,-198.18909,0.00036144,31]
[393845521,1763039439266,-163.354341,0.00036144,31]
[393845522,1763039439276,-198.18909,0.00036144,31]
[393845523,1763039439286,-151.0,0.00036144,31]
[393845524,1763039439478,-151.0,0.00036144,31]
[393845525,1763039439491,-151.0,0.00036144,31]
[393845526,1763039439502,-151.0,0.00036144,31]
[393845527,1763039439512,-151.0,0.00036144,31]
[393845528,1763039439521,-151.0,0.00036144,31]
[393845529,1763039439530,-151.0,0.00036153,31]
[393845530,1763039439540,-154.385917,0.00036153,31]
[393845531,1763039439549,-151.0,0.00036153,31]
[393845532,1763039439558,-155.449082,0.00036154,31]
[393845533,1763039439568,-151.0,0.00036154,31]
[393845534,1763039439577,-2500.0,0.00036192,5]
[393845535,1763039439587,-10459.99670901,0.0003634,10]
[393845536,1763039439596,-2487.25664838,0.0003674,5]
[393845537,1763039439605,-153.479313,0.000368,20]
[393845538,1763039439615,-151.0,0.00037205,31]
[393845539,1763039439624,-151.0,0.00037205,31]
[393845540,1763039439634,-160.53,0.000373,7]
[393845541,1763039439643,-151.0,0.000373,31]
[393845542,1763039439652,-151.0,0.000373,31]
[393845543,1763039439662,-151.0,0.000373,31]
[393845544,1763039439672,-151.0,0.000373,31]
[393845545,1763039439682,-151.0,0.000373,31]
[393845546,1763039439691,-192.292674,0.000373,31]
[393845547,1763039439701,-151.0,0.000373,31]
[393845548,1763039439711,-214.782302,0.000373,31]
[393845549,1763039439721,-214.782302,0.000373,31]
[393845550,1763039439731,-214.782302,0.000373,31]
[393845551,1763039439740,-214.782302,0.000373,31]
[393845552,1763039439750,-151.0,0.000373,31]
[393845553,1763039439760,-151.0,0.000373,31]
[393845554,1763039439769,-155.247114,0.000373,31]
[393845555,1763039439779,-301.846326,0.000373,31]
[393845556,1763039439788,-152.971877,0.000373,31]
[393845557,1763039439797,-151.0,0.000373,31]
[393845558,1763039439807,-151.0,0.000373,31]
[393845559,1763039439816,-151.0,0.000373,31]
[393845560,1763039439826,-151.0,0.000373,31]
[393845561,1763039439836,-197.03,0.00037331,10]
[393845562,1763039439846,-500.0,0.0003734,7]
[393845563,1763039439856,-500.0,0.0003734,7]
[393845564,1763039439865,-500.0,0.0003734,7]
[393845565,1763039439875,-500.0,0.0003734,7]
[393845566,1763039439885,-500.0,0.0003734,7]
[393845567,1763039439894,-615.50341527,0.0003734,7]
[393845568,1763039439904,-151.0,0.00037341,31]
[393845569,1763039439913,-151.0,0.00037341,31]
[393845570,1763039439922,-152.964369,0.00037341,31]
[393845571,1763039439933,-151.0,0.00037341,31]
[393845572,1763039439942,-155.104234,0.00037341,31]
[393845573,1763039439952,-164.288679,0.00037341,31]
[393845574,1763039439962,-173.766386,0.00037341,31]
[393845575,1763039439971,-151.0,0.00037341,31]
[393845576,1763039439980,-151.0,0.00037341,31]
[393845577,1763039439990,-151.0,0.00037341,31]
[393845578,1763039440000,-151.0,0.00037341,31]
[393845579,1763039440009,-214.782302,0.00037341,31]
[393845580,1763039440019,-214.782302,0.00037341,31]
[393845581,1763039440028,-214.782302,0.00037341,31]
[393845582,1763039440037,-214.782302,0.00037341,31]
[393845583,1763039440047,-151.0,0.00037341,31]
[393845584,1763039440056,-151.0,0.00037341,31]
[393845585,1763039440066,-151.0,0.00037341,31]
[393845586,1763039440075,-162.603661,0.00037341,31]
[393845587,1763039440085,-151.0,0.00037341,31]
[393845588,1763039440094,-154.249423,0.00037341,31]
[393845589,1763039440104,-151.0,0.00037341,31]
[393845590,1763039440113,-151.0,0.00037341,31]
[393845591,1763039440122,-151.0,0.00037341,31]
[393845592,1763039440132,-151.0,0.00037341,31]
[393845593,1763039440141,-151.0,0.00037341,31]
[393845594,1763039440151,-151.0,0.00037341,31]
[393845595,1763039440161,-151.0,0.00037341,31]
[393845596,1763039440170,-240.091991,0.00037341,31]
[393845597,1763039440180,-156.21422,0.00037341,31]
[393845598,1763039440190,-151.0,0.00037341,31]
[393845599,1763039440201,-202.514776,0.00037341,31]
[393845600,1763039440211,-151.0,0.00037341,31]
[393845601,1763039440221,-151.0,0.00037341,31]
[393845602,1763039440231,-151.0,0.00037341,31]
[393845603,1763039440240,-151.0,0.00037341,31]
[393845604,1763039440251,-151.0,0.00037341,31]
[393845606,1763039440260,-151.0,0.00037341,31]
[393845608,1763039440270,-151.0,0.00037341,31]
[393845610,1763039440280,-151.0,0.00037341,31]
[393845612,1763039440290,-164.980545,0.00037341,31]
[393845614,1763039440299,-154.431887,0.00037341,31]
[393845616,1763039440308,-151.0,0.00037341,31]
[393845619,1763039440317,-198.18909,0.00037341,31]
[393845622,1763039440328,-163.354341,0.00037341,31]
[393845623,1763039440339,-151.0,0.00037341,31]
[393845624,1763039440349,-163.354341,0.00037341,31]
[393845625,1763039440359,-198.18909,0.00037341,31]
[393845626,1763039440369,-163.354341,0.00037341,31]
[393845628,1763039440379,-198.18909,0.00037341,31]
[393845629,1763039440388,-163.354341,0.00037341,31]
[393845630,1763039440397,-198.18909,0.00037341,31]
[393845631,1763039440407,-151.0,0.00037341,31]
[393845632,1763039440415,-151.0,0.00037341,31]
[393845633,1763039440425,-151.0,0.00037341,31]
[393845634,1763039440433,-151.0,0.00037341,31]
[393845635,1763039440442,-157.752021,0.00037341,31]
[393845636,1763039440451,-151.0,0.00037341,31]
[393845637,1763039440460,-151.0,0.00037341,31]
[393845638,1763039440469,-151.0,0.00037341,31]
[393845639,1763039440478,-151.0,0.00037341,31]
[393845640,1763039440486,-176.754464,0.00037341,31]
[393845641,1763039440496,-155.849933,0.00037341,31]
[393845642,1763039440504,-151.0,0.00037341,31]
[393845643,1763039440513,-151.0,0.00037341,31]
[393845644,1763039440522,-151.0,0.00037341,31]
[393845645,1763039440530,-151.0,0.00037341,31]
[393845646,1763039440539,-201.967119,0.00037341,31]
[393845647,1763039440548,-151.0,0.00037341,31]
[393845648,1763039440557,-151.0,0.00037341,31]
[393845649,1763039440566,-151.0,0.00037341,31]
[393845650,1763039440575,-151.0,0.00037341,31]
[393845651,1763039440584,-151.0,0.00037341,31]
[393845653,1763039440596,-151.0,0.00037341,31]
[393845655,1763039440605,-222.11828132,0.00037341,120]
[393845657,1763039440615,-3318.0,0.00037341,120]
[393845658,1763039440625,-288.0,0.00037341,2]
[393845659,1763039440635,-17000.0,0.00037341,33]
[393845660,1763039440644,-446.86057911,0.00037855,2]
[393845661,1763039440654,-180.21298119,0.0003798,19]
[393845662,1763039440663,-413.0,0.00038049,2]
[393845663,1763039440674,-629.0,0.0003809,2]
[393845664,1763039440686,-2168.0,0.0003809,2]
[393845665,1763039440696,-987.0,0.0003809,2]
[393845666,1763039440706,-281.984336,0.0003809,31]
[393845667,1763039440715,-151.0,0.0003809,31]
[393845668,1763039440725,-151.0,0.0003809,31]
[393845669,1763039440734,-151.0,0.0003809,31]
[393845670,1763039440744,-151.0,0.0003809,31]
[393845671,1763039440754,-222.038009,0.0003809,31]
[393845672,1763039440763,-151.0,0.0003809,31]
[393845673,1763039440773,-151.0,0.0003809,31]
[393845674,1763039440782,-151.0,0.00038192,31]
[393845675,1763039440793,-151.0,0.00038192,31]
[393845676,1763039440802,-151.0,0.00038192,31]
[393845677,1763039440811,-151.0,0.00038192,31]
[393845678,1763039440822,-151.0,0.00038192,31]
[393845679,1763039440832,-406.0,0.00038194,2]
[393845680,1763039440842,-150.0,0.00038217,2]
[393845681,1763039440851,-200.0,0.00038531,120]
[393845682,1763039440861,-463.33,0.00039291,3]
[393845683,1763039440870,-231.67,0.00039291,3]
[393845684,1763039440880,-695.03,0.00039291,3]
[393845685,1763039440889,-151.0,0.00039299,120]
[393845686,1763039440899,-151.0,0.00039299,120]
[393845687,1763039440909,-151.0,0.00039299,120]
[393845688,1763039440918,-151.0,0.00039299,120]
[393845689,1763039440928,-221.84152,0.00039299,120]
[393845690,1763039440937,-151.0,0.00039299,120]
[393845691,1763039440947,-151.0,0.00039299,120]
[393845692,1763039440957,-200.0,0.00039299,7]
[393845693,1763039440967,-5000.0,0.00039301,4]
[393845694,1763039440977,-158.488677,0.00039301,120]
[393845695,1763039440986,-151.0,0.00039301,120]
[393845696,1763039440997,-198.18909,0.00039301,120]
[393845697,1763039441007,-163.354341,0.00039301,120]
[393845698,1763039441016,-164.473365,0.00039301,120]
[393845699,1763039441026,-198.18909,0.00039301,120]
[393845700,1763039441035,-163.354341,0.00039301,120]
[393845701,1763039441045,-163.354341,0.00039301,120]
[393845702,1763039441055,-198.18909,0.00039301,120]
[393845703,1763039441065,-163.354341,0.00039301,120]
[393845704,1763039441075,-198.18909,0.00039301,120]
[393845705,1763039441084,-151.0,0.00039301,120]
[393845706,1763039441093,-151.0,0.00039301,120]
[393845707,1763039441103,-151.0,0.00039301,120]
[393845708,1763039441111,-151.0,0.00039301,120]
[393845709,1763039441121,-2775.96,0.00039494,2]
[393845710,1763039441131,-181.0,0.00039562,2]
[393845711,1763039441141,-248.617772,0.00039654,2]
[393845712,1763039441150,-181.0,0.00039973,2]
[393845713,1763039441161,-66645.10152507,0.0004,60]
[393845714,1763039441171,-150.0,0.00040075,2]
[393845715,1763039441180,-181.0,0.00040192,7]
[393845716,1763039441190,-181.0,0.00040221,120]
[393845717,1763039441203,-181.0,0.0004029,2]
[393845718,1763039441215,-181.0,0.00040409,7]
[393845719,1763039441224,-181.0,0.00040417,2]
[393845720,1763039441235,-160.53,0.000405,7]
[393845721,1763039441246,-181.0,0.00040646,2]
[393845722,1763039441257,-926.66,0.00040661,3]
[393845723,1763039441266,-463.34,0.00040661,3]
[393845724,1763039441275,-181.0,0.00040727,120]
[393845725,1763039441287,-151.0,0.00040879,120]
[393845726,1763039441296,-151.0,0.00040879,120]
[393845727,1763039441306,-156.659746,0.00040879,120]
[393845728,1763039441315,-202.18213167,0.00041,120]
[393845729,1763039441324,-413.0,0.00041049,2]
[393845730,1763039441333,-926.66,0.0004107,3]
[393845731,1763039441343,-1853.33,0.0004108,3]
[393845732,1763039441353,-629.0,0.0004109,2]
[393845733,1763039441363,-2168.0,0.0004109,2]
[393845734,1763039441372,-987.0,0.0004109,2]
[393845735,1763039441381,-151.0,0.0004109,120]
[393845736,1763039441391,-151.0,0.0004109,120]
[393845737,1763039441400,-151.0,0.0004109,120]
[393845738,1763039441410,-151.0,0.0004109,95]
[393845739,1763039441419,-151.0,0.0004109,120]
[393845740,1763039441428,-151.0,0.0004109,120]
[393845741,1763039441438,-233.12125607,0.00041095,120]
[393845742,1763039441447,-500.0,0.00041096,2]
[393845743,1763039441456,-500.0,0.00041151,2]
[393845744,1763039441466,-294.832924,0.00041151,120]
[393845745,1763039441475,-151.0,0.00041151,120]
[393845746,1763039441485,-151.0,0.00041151,120]
[393845747,1763039441494,-500.0,0.00041206,2]
[393845748,1763039441503,-151.0,0.0004126,120]
[393845749,1763039441512,-151.0,0.0004126,120]